[Event "Titled Tuesday Blitz May 24 Early 2022"]
[White "Alinasab, Mobina"]
[Black "Kozak, Antoni"]
[WhiteFideId "12528897"]
[BlackFideId "21832030"]
[WhiteElo "2031"]
[BlackElo "2322"]
[Result "0-1"]
[Round "09"]
[TimeControl "180+1"]
[Date "2022.05.24"]
[WhiteClock "0:00:06"]
[BlackClock "0:00:11"]

1. Nf3 {[%clk 0:03:00]}  d5 {[%clk 0:02:59]} 2. g3 {[%clk 0:02:55]}  Nf6 {[%clk 0:02:58]} 3. Bg2 {[%clk 0:02:52]}  Bg4 {[%clk 0:02:53]} 4. O-O {[%clk 0:02:38]}  e6 {[%clk 0:02:53]} 5. d4 {[%clk 0:02:37]}  Be7 {[%clk 0:02:52]} 6. b3 {[%clk 0:02:36]}  O-O {[%clk 0:02:52]} 7. Bb2 {[%clk 0:02:37]}  c6 {[%clk 0:02:47]} 8. c4 {[%clk 0:02:37]}  Nbd7 {[%clk 0:02:47]} 9. Nc3 {[%clk 0:02:37]}  a5 {[%clk 0:02:46]} 10. Ne5 {[%clk 0:02:33]}  Nxe5 {[%clk 0:02:43]} 11. dxe5 {[%clk 0:02:31]}  Nd7 {[%clk 0:02:44]} 12. h3 {[%clk 0:02:24]}  Bh5 {[%clk 0:02:39]} 13. f4 {[%clk 0:02:21]}  dxc4 {[%clk 0:02:07]} 14. Kh2 {[%clk 0:02:10]}  cxb3 {[%clk 0:02:05]} 15. axb3 {[%clk 0:02:11]}  Nc5 {[%clk 0:01:59]} 16. Qc2 {[%clk 0:02:01]}  Qb6 {[%clk 0:01:48]} 17. Ra3 {[%clk 0:01:03]}  Rfd8 {[%clk 0:01:29]} 18. g4 {[%clk 0:00:41]}  Bg6 {[%clk 0:01:28]} 19. f5 {[%clk 0:00:41]}  exf5 {[%clk 0:01:29]} 20. gxf5 {[%clk 0:00:42]}  Bh5 {[%clk 0:01:29]} 21. Bf3 {[%clk 0:00:37]}  Bxf3 {[%clk 0:01:26]} 22. Rxf3 {[%clk 0:00:38]}  Bf8 {[%clk 0:01:19]} 23. Na4 {[%clk 0:00:32]}  Nxa4 {[%clk 0:01:17]} 24. Rxa4 {[%clk 0:00:33]}  Rd5 {[%clk 0:01:08]} 25. Rg4 {[%clk 0:00:32]}  Qc7 {[%clk 0:01:02]} 26. Kg2 {[%clk 0:00:31]}  Rxe5 {[%clk 0:00:59]} 27. Bxe5 {[%clk 0:00:29]}  Qxe5 {[%clk 0:01:00]} 28. f6 {[%clk 0:00:23]}  g6 {[%clk 0:00:59]} 29. Re4 {[%clk 0:00:23]}  Qd5 {[%clk 0:00:55]} 30. Qc4 {[%clk 0:00:19]}  Qxc4 {[%clk 0:00:51]} 31. Rxc4 {[%clk 0:00:20]}  Re8 {[%clk 0:00:48]} 32. Kf2 {[%clk 0:00:14]}  h6 {[%clk 0:00:46]} 33. Re3 {[%clk 0:00:13]}  Rc8 {[%clk 0:00:33]} 34. Kf3 {[%clk 0:00:10]}  Kh7 {[%clk 0:00:30]} 35. Rce4 {[%clk 0:00:10]}  Bc5 {[%clk 0:00:27]} 36. Re8 {[%clk 0:00:10]}  Rxe8 {[%clk 0:00:19]} 37. Rxe8 {[%clk 0:00:11]}  g5 {[%clk 0:00:20]} 38. Re7 {[%clk 0:00:06]}  Kg6 {[%clk 0:00:20]} 39. Rxb7 {[%clk 0:00:07]}  Bb4 {[%clk 0:00:18]} 40. Rb6 {[%clk 0:00:05]}  c5 {[%clk 0:00:16]} 41. e4 {[%clk 0:00:05]}  Bc3 {[%clk 0:00:14]} 42. Rc6 {[%clk 0:00:05]}  Bd4 {[%clk 0:00:13]} 43. Ra6 {[%clk 0:00:04]}  h5 {[%clk 0:00:14]} 44. Rxa5 {[%clk 0:00:04]}  Kxf6 {[%clk 0:00:14]} 45. Ra6+ {[%clk 0:00:04]}  Ke5 {[%clk 0:00:14]} 46. Rc6 {[%clk 0:00:05]}  f6 {[%clk 0:00:12]} 47. Rc8 {[%clk 0:00:05]}  Kd6 {[%clk 0:00:11]} 48. Re8 {[%clk 0:00:06]}  Kc6 {[%clk 0:00:11]} 49. Rh8 {[%clk 0:00:06]}  h4 {[%clk 0:00:11]} 50. Rf8 {[%clk 0:00:06]}  Kb5 {[%clk 0:00:12]} 51. Kg4 {[%clk 0:00:06]}  Kb4 {[%clk 0:00:12]} 52. Rb8+ {[%clk 0:00:07]}  Kc3 {[%clk 0:00:13]} 53. Kf5 {[%clk 0:00:08]}  Be5 {[%clk 0:00:13]} 54. Rb5 {[%clk 0:00:07]}  Kd4 {[%clk 0:00:13]} 55. b4 {[%clk 0:00:04]}  c4 {[%clk 0:00:13]} 56. Rc5 {[%clk 0:00:03]}  c3 {[%clk 0:00:13]} 57. Rc8 {[%clk 0:00:04]}  Bd6 {[%clk 0:00:10]} 58. b5 {[%clk 0:00:04]}  Bc5 {[%clk 0:00:10]} 59. Rd8+ {[%clk 0:00:04]}  Kc4 {[%clk 0:00:10]} 60. Rd1 {[%clk 0:00:05]}  Kxb5 {[%clk 0:00:11]} 61. Kxf6 {[%clk 0:00:06]}  Be3 {[%clk 0:00:11]} 0-1


[Site "https://www.chess.com"]

[Event "Titled Tuesday Blitz May 24 Early 2022"]
[White "Al-Tarboush, Ward"]
[Black "Vignesh, N R"]
[WhiteFideId "7601450"]
[BlackFideId "25012215"]
[WhiteElo "2294"]
[BlackElo "2363"]
[Result "0-1"]
[Round "09"]
[TimeControl "180+1"]
[Date "2022.05.25"]
[WhiteClock "0:00:04"]
[BlackClock "0:01:10"]

1. e4 {[%clk 0:03:00]}  c5 {[%clk 0:02:58]} 2. Nf3 {[%clk 0:02:59]}  d6 {[%clk 0:02:58]} 3. d4 {[%clk 0:02:57]}  cxd4 {[%clk 0:02:59]} 4. Nxd4 {[%clk 0:02:56]}  Nf6 {[%clk 0:02:59]} 5. Nc3 {[%clk 0:02:56]}  Bd7 {[%clk 0:02:58]} 6. Bg5 {[%clk 0:02:49]}  e6 {[%clk 0:02:57]} 7. Qd2 {[%clk 0:02:48]}  Nc6 {[%clk 0:02:53]} 8. O-O-O {[%clk 0:02:47]}  a6 {[%clk 0:02:48]} 9. f4 {[%clk 0:02:46]}  Qb6 {[%clk 0:02:47]} 10. e5 {[%clk 0:02:38]}  dxe5 {[%clk 0:02:35]} 11. Nf5 {[%clk 0:02:17]}  exf5 {[%clk 0:02:10]} 12. Bxf6 {[%clk 0:02:11]}  Qd4 {[%clk 0:02:10]} 13. Qxd4 {[%clk 0:01:53]}  exd4 {[%clk 0:02:09]} 14. Bxd4 {[%clk 0:01:28]}  Nxd4 {[%clk 0:01:57]} 15. Rxd4 {[%clk 0:01:29]}  Bc5 {[%clk 0:01:54]} 16. Rd3 {[%clk 0:01:29]}  O-O-O {[%clk 0:01:49]} 17. Be2 {[%clk 0:01:28]}  Bc6 {[%clk 0:01:48]} 18. Rg3 {[%clk 0:01:07]}  g6 {[%clk 0:01:45]} 19. Rf1 {[%clk 0:00:57]}  Rhe8 {[%clk 0:01:44]} 20. Bd3 {[%clk 0:00:46]}  Be3+ {[%clk 0:01:36]} 21. Kd1 {[%clk 0:00:41]}  b5 {[%clk 0:01:35]} 22. Ne2 {[%clk 0:00:22]}  h5 {[%clk 0:01:34]} 23. h4 {[%clk 0:00:20]}  Bc5 {[%clk 0:01:32]} 24. a3 {[%clk 0:00:16]}  Be7 {[%clk 0:01:31]} 25. Rh1 {[%clk 0:00:15]}  Bf6 {[%clk 0:01:31]} 26. c3 {[%clk 0:00:14]}  Be4 {[%clk 0:01:29]} 27. Nd4 {[%clk 0:00:12]}  Bxd4 {[%clk 0:01:28]} 28. cxd4 {[%clk 0:00:13]}  Rxd4 {[%clk 0:01:27]} 29. Kc2 {[%clk 0:00:13]}  Bxd3+ {[%clk 0:01:20]} 30. Rxd3 {[%clk 0:00:14]}  Re2+ {[%clk 0:01:20]} 31. Kc3 {[%clk 0:00:14]}  Rxd3+ {[%clk 0:01:20]} 32. Kxd3 {[%clk 0:00:15]}  Rxb2 {[%clk 0:01:18]} 33. Re1 {[%clk 0:00:08]}  Kd7 {[%clk 0:01:17]} 34. g3 {[%clk 0:00:05]}  Rb3+ {[%clk 0:01:16]} 35. Kd4 {[%clk 0:00:05]}  Rxg3 {[%clk 0:01:16]} 36. Ke5 {[%clk 0:00:05]}  Ke7 {[%clk 0:01:16]} 37. Kd5+ {[%clk 0:00:05]}  Kf6 {[%clk 0:01:15]} 38. Rc1 {[%clk 0:00:06]}  Rd3+ {[%clk 0:01:14]} 39. Kc6 {[%clk 0:00:06]}  Rxa3 {[%clk 0:01:13]} 40. Rd1 {[%clk 0:00:03]}  Ra4 {[%clk 0:01:13]} 41. Rd6+ {[%clk 0:00:02]}  Kg7 {[%clk 0:01:12]} 42. Kd7 {[%clk 0:00:02]}  Rxf4 {[%clk 0:01:12]} 43. Rxa6 {[%clk 0:00:03]}  Rxh4 {[%clk 0:01:11]} 44. Rb6 {[%clk 0:00:03]}  Re4 {[%clk 0:01:11]} 45. Rb7 {[%clk 0:00:04]}  b4 {[%clk 0:01:10]} 46. Kd8 {[%clk 0:00:04]}  h4 {[%clk 0:01:10]} 0-1


[Site "https://www.chess.com"]

[Event "Titled Tuesday Blitz May 24 Early 2022"]
[White "Aradhya, Garg"]
[Black "Ibrahimli, Murad"]
[WhiteFideId "25006746"]
[BlackFideId "13410229"]
[WhiteElo "2169"]
[BlackElo "2109"]
[Result "0-1"]
[Round "09"]
[TimeControl "180+1"]
[Date "2022.05.24"]
[WhiteClock "0:01:44"]
[BlackClock "0:02:01"]

1. d4 {[%clk 0:02:56]}  d5 {[%clk 0:02:59]} 2. c4 {[%clk 0:02:54]}  e6 {[%clk 0:02:59]} 3. Nc3 {[%clk 0:02:54]}  Nf6 {[%clk 0:02:59]} 4. cxd5 {[%clk 0:02:54]}  exd5 {[%clk 0:02:58]} 5. Bg5 {[%clk 0:02:55]}  c6 {[%clk 0:02:59]} 6. e3 {[%clk 0:02:55]}  Be7 {[%clk 0:02:59]} 7. Bd3 {[%clk 0:02:55]}  Nbd7 {[%clk 0:02:59]} 8. Qc2 {[%clk 0:02:54]}  h6 {[%clk 0:02:58]} 9. Bf4 {[%clk 0:02:54]}  Nh5 {[%clk 0:02:56]} 10. Bg3 {[%clk 0:02:50]}  Nxg3 {[%clk 0:02:55]} 11. hxg3 {[%clk 0:02:51]}  Nf6 {[%clk 0:02:55]} 12. Nf3 {[%clk 0:02:50]}  Bd6 {[%clk 0:02:55]} 13. O-O-O {[%clk 0:02:47]}  Be6 {[%clk 0:02:55]} 14. Kb1 {[%clk 0:02:47]}  Qe7 {[%clk 0:02:54]} 15. Ne5 {[%clk 0:02:46]}  O-O-O {[%clk 0:02:44]} 16. Nb5 {[%clk 0:02:41]}  Kb8 {[%clk 0:02:30]} 17. Nxd6 {[%clk 0:02:40]}  Qxd6 {[%clk 0:02:29]} 18. f4 {[%clk 0:02:35]}  Rhf8 {[%clk 0:02:26]} 19. Rc1 {[%clk 0:02:32]}  Rc8 {[%clk 0:02:25]} 20. Qb3 {[%clk 0:02:25]}  Rc7 {[%clk 0:02:23]} 21. Rc2 {[%clk 0:02:24]}  Ne4 {[%clk 0:02:22]} 22. Rhc1 {[%clk 0:02:22]}  Rfc8 {[%clk 0:02:20]} 23. Bxe4 {[%clk 0:02:15]}  dxe4 {[%clk 0:02:20]} 24. Qc3 {[%clk 0:02:15]}  f6 {[%clk 0:02:13]} 25. Nc4 {[%clk 0:02:13]}  Qd5 {[%clk 0:02:13]} 26. b3 {[%clk 0:02:13]}  c5 {[%clk 0:02:14]} 27. dxc5 {[%clk 0:02:10]}  Rxc5 {[%clk 0:02:10]} 28. Qd2 {[%clk 0:01:58]}  Qd3 {[%clk 0:02:01]} 29. Qxd3 {[%clk 0:01:46]}  exd3 {[%clk 0:02:02]} 30. Rd2 {[%clk 0:01:47]}  b5 {[%clk 0:02:00]} 31. Rb2 {[%clk 0:01:38]}  bxc4 {[%clk 0:01:59]} 32. bxc4+ {[%clk 0:01:39]}  Ka8 {[%clk 0:02:00]} 33. Rc3 {[%clk 0:01:39]}  Bxc4 {[%clk 0:01:59]} 34. Kc1 {[%clk 0:01:39]}  Bxa2 {[%clk 0:01:57]} 35. Rxc5 {[%clk 0:01:39]}  Rxc5+ {[%clk 0:01:58]} 36. Kd2 {[%clk 0:01:40]}  Rc2+ {[%clk 0:01:58]} 37. Rxc2 {[%clk 0:01:39]}  dxc2 {[%clk 0:01:59]} 38. Kxc2 {[%clk 0:01:39]}  Bd5 {[%clk 0:01:59]} 39. Kc3 {[%clk 0:01:40]}  a5 {[%clk 0:01:58]} 40. Kd4 {[%clk 0:01:41]}  Bxg2 {[%clk 0:01:58]} 41. e4 {[%clk 0:01:41]}  Bxe4 {[%clk 0:01:58]} 42. Kxe4 {[%clk 0:01:41]}  Kb7 {[%clk 0:01:59]} 43. Kf5 {[%clk 0:01:41]}  a4 {[%clk 0:01:59]} 44. Kg6 {[%clk 0:01:42]}  a3 {[%clk 0:01:59]} 45. Kxg7 {[%clk 0:01:42]}  a2 {[%clk 0:02:00]} 46. Kxf6 {[%clk 0:01:43]}  a1=Q+ {[%clk 0:02:00]} 47. Kg6 {[%clk 0:01:44]}  Qg1 {[%clk 0:02:00]} 48. f5 {[%clk 0:01:44]}  Qxg3+ {[%clk 0:02:01]} 49. Kxh6 {[%clk 0:01:45]}  Qg8 {[%clk 0:02:01]} 50. f6 {[%clk 0:01:44]}  Kc6 {[%clk 0:02:01]} 0-1


[Site "https://www.chess.com"]

[Event "Titled Tuesday Blitz May 24 Early 2022"]
[White "Avazkhonov, Alikhon"]
[Black "Kim, Sergey"]
[WhiteFideId "14208504"]
[BlackFideId "13700570"]
[WhiteElo "1739"]
[BlackElo "2526"]
[Result "0-1"]
[Round "09"]
[TimeControl "180+1"]
[Date "2022.05.25"]
[WhiteClock "0:00:01"]
[BlackClock "0:00:16"]

1. f4 {[%clk 0:02:31]}  d5 {[%clk 0:02:58]} 2. Nf3 {[%clk 0:02:32]}  c5 {[%clk 0:02:59]} 3. g3 {[%clk 0:02:32]}  Nc6 {[%clk 0:02:58]} 4. Bg2 {[%clk 0:02:33]}  g6 {[%clk 0:02:58]} 5. O-O {[%clk 0:02:34]}  Bg7 {[%clk 0:02:58]} 6. d3 {[%clk 0:02:35]}  Nf6 {[%clk 0:02:57]} 7. Qe1 {[%clk 0:02:33]}  O-O {[%clk 0:02:57]} 8. e4 {[%clk 0:02:33]}  b6 {[%clk 0:02:52]} 9. Nc3 {[%clk 0:02:31]}  dxe4 {[%clk 0:02:50]} 10. dxe4 {[%clk 0:02:31]}  Ba6 {[%clk 0:02:44]} 11. Rf2 {[%clk 0:02:32]}  Qc7 {[%clk 0:02:42]} 12. e5 {[%clk 0:02:31]}  Ng4 {[%clk 0:02:39]} 13. Rd2 {[%clk 0:02:31]}  Rad8 {[%clk 0:02:32]} 14. h3 {[%clk 0:02:26]}  Nh6 {[%clk 0:02:30]} 15. b3 {[%clk 0:02:15]}  Nf5 {[%clk 0:02:27]} 16. Nd5 {[%clk 0:02:08]}  Qc8 {[%clk 0:02:22]} 17. g4 {[%clk 0:02:03]}  Nfd4 {[%clk 0:02:16]} 18. c4 {[%clk 0:01:39]}  Rfe8 {[%clk 0:02:04]} 19. Bb2 {[%clk 0:01:38]}  Nxf3+ {[%clk 0:02:01]} 20. Bxf3 {[%clk 0:01:38]}  Bb7 {[%clk 0:01:59]} 21. Rad1 {[%clk 0:01:38]}  e6 {[%clk 0:01:41]} 22. Nf6+ {[%clk 0:01:37]}  Bxf6 {[%clk 0:01:42]} 23. exf6 {[%clk 0:01:38]}  Rxd2 {[%clk 0:01:41]} 24. Rxd2 {[%clk 0:01:38]}  Rd8 {[%clk 0:01:40]} 25. Qd1 {[%clk 0:01:04]}  Rxd2 {[%clk 0:01:39]} 26. Qxd2 {[%clk 0:01:05]}  Nd8 {[%clk 0:01:35]} 27. f5 {[%clk 0:00:26]}  exf5 {[%clk 0:01:35]} 28. Qh6 {[%clk 0:00:24]}  Ne6 {[%clk 0:01:34]} 29. Bd5 {[%clk 0:00:22]}  Bxd5 {[%clk 0:01:28]} 30. cxd5 {[%clk 0:00:23]}  Qf8 {[%clk 0:01:28]} 31. Qe3 {[%clk 0:00:14]}  f4 {[%clk 0:01:23]} 32. Qe5 {[%clk 0:00:11]}  Nd8 {[%clk 0:01:00]} 33. Qxf4 {[%clk 0:00:11]}  h6 {[%clk 0:00:57]} 34. Be5 {[%clk 0:00:09]}  Kh7 {[%clk 0:00:56]} 35. h4 {[%clk 0:00:09]}  Qe8 {[%clk 0:00:51]} 36. Kf2 {[%clk 0:00:07]}  Qd7 {[%clk 0:00:50]} 37. Kg3 {[%clk 0:00:06]}  Qxd5 {[%clk 0:00:49]} 38. h5 {[%clk 0:00:06]}  Qd3+ {[%clk 0:00:48]} 39. Kg2 {[%clk 0:00:04]}  Ne6 {[%clk 0:00:46]} 40. hxg6+ {[%clk 0:00:04]}  Qxg6 {[%clk 0:00:43]} 41. Qf3 {[%clk 0:00:03]}  b5 {[%clk 0:00:40]} 42. Qf5 {[%clk 0:00:02]}  c4 {[%clk 0:00:39]} 43. bxc4 {[%clk 0:00:02]}  bxc4 {[%clk 0:00:39]} 44. Kf3 {[%clk 0:00:03]}  Qxf5+ {[%clk 0:00:33]} 45. gxf5 {[%clk 0:00:04]}  Ng5+ {[%clk 0:00:30]} 46. Ke3 {[%clk 0:00:04]}  h5 {[%clk 0:00:30]} 47. Bf4 {[%clk 0:00:03]}  Kh6 {[%clk 0:00:26]} 48. Kd4 {[%clk 0:00:03]}  h4 {[%clk 0:00:27]} 49. Kxc4 {[%clk 0:00:03]}  h3 {[%clk 0:00:26]} 50. Kb5 {[%clk 0:00:02]}  Kh5 {[%clk 0:00:26]} 51. Ka6 {[%clk 0:00:02]}  Kg4 {[%clk 0:00:26]} 52. Bb8 {[%clk 0:00:02]}  Ne4 {[%clk 0:00:22]} 53. Kxa7 {[%clk 0:00:01]}  Ng3 {[%clk 0:00:22]} 54. a4 {[%clk 0:00:01]}  h2 {[%clk 0:00:22]} 55. a5 {[%clk 0:00:02]}  h1=Q {[%clk 0:00:22]} 56. a6 {[%clk 0:00:03]}  Qc6 {[%clk 0:00:19]} 57. Be5 {[%clk 0:00:01]}  Nxf5 {[%clk 0:00:17]} 58. Kb8 {[%clk 0:00:01]}  Qxa6 {[%clk 0:00:17]} 59. Kc7 {[%clk 0:00:01]}  Qe6 {[%clk 0:00:16]} 60. Bc3 {[%clk 0:00:01]}  Ne3 {[%clk 0:00:16]} 0-1


[Site "https://www.chess.com"]

[Event "Titled Tuesday Blitz May 24 Early 2022"]
[White "Avinash, Ramesh"]
[Black "Rom, Jasper"]
[WhiteFideId "45018340"]
[BlackFideId "2023733"]
[WhiteElo "1875"]
[BlackElo "2233"]
[Result "1-0"]
[Round "09"]
[TimeControl "180+1"]
[Date "2022.05.25"]
[WhiteClock "0:00:36"]
[BlackClock "0:00:01"]

1. c4 {[%clk 0:02:59]}  e6 {[%clk 0:02:59]} 2. d4 {[%clk 0:02:58]}  d5 {[%clk 0:02:59]} 3. Nc3 {[%clk 0:02:58]}  c6 {[%clk 0:02:58]} 4. Nf3 {[%clk 0:02:57]}  dxc4 {[%clk 0:02:58]} 5. e4 {[%clk 0:02:55]}  b5 {[%clk 0:02:57]} 6. Bg5 {[%clk 0:02:53]}  Qb6 {[%clk 0:02:54]} 7. Be2 {[%clk 0:02:49]}  Nd7 {[%clk 0:02:49]} 8. O-O {[%clk 0:02:47]}  Ngf6 {[%clk 0:02:49]} 9. e5 {[%clk 0:02:45]}  Nd5 {[%clk 0:02:47]} 10. a4 {[%clk 0:02:44]}  Bb4 {[%clk 0:02:36]} 11. Qc2 {[%clk 0:02:39]}  h6 {[%clk 0:02:28]} 12. Bd2 {[%clk 0:02:35]}  Be7 {[%clk 0:02:24]} 13. b3 {[%clk 0:02:25]}  cxb3 {[%clk 0:02:00]} 14. Qxb3 {[%clk 0:02:24]}  b4 {[%clk 0:01:57]} 15. Nxd5 {[%clk 0:02:22]}  cxd5 {[%clk 0:01:45]} 16. a5 {[%clk 0:02:21]}  Qb7 {[%clk 0:01:40]} 17. Rfb1 {[%clk 0:02:14]}  Rb8 {[%clk 0:01:40]} 18. Ra4 {[%clk 0:02:08]}  Nf8 {[%clk 0:01:26]} 19. Ne1 {[%clk 0:02:06]}  Bd7 {[%clk 0:01:25]} 20. Ra2 {[%clk 0:02:00]}  Ng6 {[%clk 0:01:14]} 21. Rab2 {[%clk 0:01:58]}  Qc7 {[%clk 0:01:00]} 22. Nd3 {[%clk 0:01:51]}  Qxa5 {[%clk 0:00:57]} 23. Nxb4 {[%clk 0:01:48]}  O-O {[%clk 0:00:46]} 24. Qd1 {[%clk 0:01:44]}  Qb6 {[%clk 0:00:21]} 25. Na6 {[%clk 0:01:15]}  Qxb2 {[%clk 0:00:19]} 26. Nxb8 {[%clk 0:01:15]}  Rxb8 {[%clk 0:00:09]} 27. Rxb2 {[%clk 0:01:15]}  Rxb2 {[%clk 0:00:09]} 28. g3 {[%clk 0:01:15]}  Rb6 {[%clk 0:00:06]} 29. Kg2 {[%clk 0:01:12]}  Bf8 {[%clk 0:00:06]} 30. Qa1 {[%clk 0:01:08]}  Rb7 {[%clk 0:00:07]} 31. Qa6 {[%clk 0:01:05]}  Rb2 {[%clk 0:00:06]} 32. Be3 {[%clk 0:00:53]}  Ne7 {[%clk 0:00:05]} 33. Bc1 {[%clk 0:00:51]}  Rb1 {[%clk 0:00:04]} 34. Qxa7 {[%clk 0:00:48]}  Rxc1 {[%clk 0:00:02]} 35. Qxd7 {[%clk 0:00:48]}  Nf5 {[%clk 0:00:03]} 36. Bh5 {[%clk 0:00:40]}  g6 {[%clk 0:00:01]} 37. Bxg6 {[%clk 0:00:41]}  fxg6 {[%clk 0:00:01]} 38. Qxe6+ {[%clk 0:00:41]}  Kg7 {[%clk 0:00:01]} 39. Qxd5 {[%clk 0:00:41]}  Rd1 {[%clk 0:00:01]} 40. Qd7+ {[%clk 0:00:37]}  Kg8 {[%clk 0:00:01]} 41. d5 {[%clk 0:00:36]} 1-0


[Site "https://www.chess.com"]

[Event "Titled Tuesday Blitz May 24 Early 2022"]
[White "Cardoso Cardoso, Jose Gabriel"]
[Black "Tregubov, Pavel V."]
[WhiteFideId "4430492"]
[BlackFideId "4115341"]
[WhiteElo "2485"]
[BlackElo "2341"]
[Result "1-0"]
[Round "09"]
[TimeControl "180+1"]
[Date "2022.05.24"]
[WhiteClock "0:00:05"]
[BlackClock "0:00:03"]

1. c4 {[%clk 0:02:55]}  Nf6 {[%clk 0:02:57]} 2. Nc3 {[%clk 0:02:54]}  c5 {[%clk 0:02:57]} 3. Nf3 {[%clk 0:02:47]}  Nc6 {[%clk 0:02:57]} 4. e3 {[%clk 0:02:48]}  e6 {[%clk 0:02:57]} 5. d4 {[%clk 0:02:48]}  d5 {[%clk 0:02:58]} 6. a3 {[%clk 0:02:45]}  a6 {[%clk 0:02:58]} 7. dxc5 {[%clk 0:02:43]}  Bxc5 {[%clk 0:02:58]} 8. Be2 {[%clk 0:02:42]}  O-O {[%clk 0:02:56]} 9. O-O {[%clk 0:02:41]}  dxc4 {[%clk 0:02:50]} 10. Bxc4 {[%clk 0:02:39]}  Qe7 {[%clk 0:02:45]} 11. b4 {[%clk 0:02:37]}  Rd8 {[%clk 0:02:44]} 12. Qe2 {[%clk 0:02:32]}  Bd6 {[%clk 0:02:38]} 13. Bb3 {[%clk 0:02:20]}  b5 {[%clk 0:02:36]} 14. e4 {[%clk 0:02:14]}  Ng4 {[%clk 0:02:15]} 15. Bg5 {[%clk 0:02:06]}  f6 {[%clk 0:02:15]} 16. Bh4 {[%clk 0:01:58]}  Kh8 {[%clk 0:02:04]} 17. Rad1 {[%clk 0:01:47]}  Bb7 {[%clk 0:02:03]} 18. Bg3 {[%clk 0:01:35]}  Bxg3 {[%clk 0:02:00]} 19. hxg3 {[%clk 0:01:32]}  Rac8 {[%clk 0:01:46]} 20. Rxd8+ {[%clk 0:01:23]}  Rxd8 {[%clk 0:01:44]} 21. Rd1 {[%clk 0:01:21]}  Nge5 {[%clk 0:01:36]} 22. Rxd8+ {[%clk 0:01:10]}  Qxd8 {[%clk 0:01:34]} 23. Bxe6 {[%clk 0:01:08]}  Nd4 {[%clk 0:01:34]} 24. Nxd4 {[%clk 0:01:07]}  Qxd4 {[%clk 0:01:33]} 25. Nd5 {[%clk 0:00:43]}  Nc4 {[%clk 0:00:59]} 26. Qh5 {[%clk 0:00:39]}  Nd6 {[%clk 0:00:42]} 27. Bf5 {[%clk 0:00:38]}  h6 {[%clk 0:00:19]} 28. Ne7 {[%clk 0:00:38]}  Bxe4 {[%clk 0:00:15]} 29. Be6 {[%clk 0:00:13]}  Qe5 {[%clk 0:00:12]} 30. Qxe5 {[%clk 0:00:08]}  fxe5 {[%clk 0:00:12]} 31. f3 {[%clk 0:00:08]}  Bb1 {[%clk 0:00:06]} 32. Nc6 {[%clk 0:00:08]}  Nc4 {[%clk 0:00:06]} 33. Kf2 {[%clk 0:00:07]}  Nxa3 {[%clk 0:00:05]} 34. Nxe5 {[%clk 0:00:07]}  g5 {[%clk 0:00:05]} 35. Bc8 {[%clk 0:00:07]}  Nc4 {[%clk 0:00:03]} 36. Nc6 {[%clk 0:00:05]} 1-0


[Site "https://www.chess.com"]

[Event "Titled Tuesday Blitz May 24 Early 2022"]
[White "Chuemsakul, Sarocha"]
[Black "Osiecki, Stanislaw"]
[WhiteFideId "6203710"]
[BlackFideId "1102990"]
[WhiteElo "1703"]
[BlackElo "2127"]
[Result "1-0"]
[Round "09"]
[TimeControl "180+1"]
[Date "2022.05.25"]
[WhiteClock "0:01:40"]
[BlackClock "0:00:40"]

1. d4 {[%clk 0:03:00]}  Nf6 {[%clk 0:02:59]} 2. c4 {[%clk 0:03:01]}  g6 {[%clk 0:02:59]} 3. Nc3 {[%clk 0:03:00]}  Bg7 {[%clk 0:02:59]} 4. e4 {[%clk 0:03:00]}  d6 {[%clk 0:03:00]} 5. Nf3 {[%clk 0:03:01]}  O-O {[%clk 0:03:00]} 6. Be2 {[%clk 0:03:01]}  e5 {[%clk 0:02:59]} 7. O-O {[%clk 0:03:01]}  Nbd7 {[%clk 0:02:58]} 8. h3 {[%clk 0:02:58]}  c6 {[%clk 0:02:57]} 9. Be3 {[%clk 0:02:58]}  Nh5 {[%clk 0:02:56]} 10. Qd2 {[%clk 0:02:57]}  f5 {[%clk 0:02:56]} 11. Bg5 {[%clk 0:02:57]}  Bf6 {[%clk 0:02:55]} 12. Bxf6 {[%clk 0:02:57]}  Nhxf6 {[%clk 0:02:53]} 13. exf5 {[%clk 0:02:55]}  gxf5 {[%clk 0:02:53]} 14. Qg5+ {[%clk 0:02:52]}  Kh8 {[%clk 0:02:51]} 15. Qxf5 {[%clk 0:02:52]}  exd4 {[%clk 0:02:27]} 16. Nxd4 {[%clk 0:02:50]}  Nc5 {[%clk 0:02:20]} 17. Qc2 {[%clk 0:02:46]}  Rg8 {[%clk 0:02:18]} 18. Kh1 {[%clk 0:02:44]}  Qf8 {[%clk 0:02:10]} 19. Nf5 {[%clk 0:02:27]}  Nfe4 {[%clk 0:01:57]} 20. Nxe4 {[%clk 0:02:14]}  Bxf5 {[%clk 0:01:55]} 21. f3 {[%clk 0:02:11]}  Qg7 {[%clk 0:01:47]} 22. Rf2 {[%clk 0:02:01]}  Rae8 {[%clk 0:01:25]} 23. Bd3 {[%clk 0:01:56]}  Nxd3 {[%clk 0:01:18]} 24. Qxd3 {[%clk 0:01:57]}  Qe5 {[%clk 0:01:14]} 25. Rd1 {[%clk 0:01:52]}  Bxe4 {[%clk 0:00:51]} 26. fxe4 {[%clk 0:01:50]}  Qxe4 {[%clk 0:00:52]} 27. Qxd6 {[%clk 0:01:44]}  Rd8 {[%clk 0:00:42]} 28. Qf6+ {[%clk 0:01:40]}  Rg7 {[%clk 0:00:40]} 29. Rxd8+ {[%clk 0:01:40]} 1-0


[Site "https://www.chess.com"]